{"text_format":"1","workbook":"xlsx","n_sheets":2,"sheets":["Темы","Расписание"],"not_rendered":{"charts":0,"images":0,"macros":1,"external_links":0,"defined_names":0,"comments":0,"pivot_tables":0},"unopened":[],"bounds":{"document_bytes":16777216,"sheet_cells":100000,"rows_first":2000,"rows_last":500,"rows_between":2000,"halvings":0,"cell_chars":16384,"cell_head_chars":4096},"cells_cut":0,"cells_raw":0,"read":"whole","date_system":"1900"}

{"sheet":"Темы","index":0,"n_rows":78,"n_cols":3,"rows_kept":78,"cut":false,"hidden":false,"merged":[]}
["Современная система здравоохранения. Медицинское страхование",null,2]
["Профилактическая медицина – приоритетное направление здравоохранения",null,2]
["Этико-правовые аспекты в деятельности медицинской сестры",null,2]
["Психология общения",null,2]
["Фитотерапия",null,2]
["Ароматерапия",null,2]
["СЭР косметологических отделений и кабинетов",null,4]
["Эпидемиология и профилактика ВИЧ инфекции.",null,4]
["Профилактика вирусных гепатитов",null,4]
["Приказы, документы по организации работы косметологических учреждений. Функциональные обязанности м/сестры. Пользование аппаратурой, техника безопасности, ведение документации.",null,2]
["Принципы диагностики заболеваний кожи",null,2]
["Принципы диагностики косметических дефектов",null,2]
["Пиодермии ",null,2]
["Вирусные заболевания кожи",null,2]
["Микозы. Онихомикозы. Лечение и профилактика микозов.",null,2]
["Зудящие дерматозы. Псориаз. ",null,2]
["Новообразования ",null,2]
["Заболевания волос",null,2]
["Косметические дефекты и заболевания кожи",null,2]
["Поражения кожи при заболеваниях, передающихся половым путем",null,2]
["Антицеллюлитные программы",null,2]
["Оперативная косметология",null,2]
["Физиотерапевтические методы лечения, применяемые в косметологии",null,2]
["Косметический массаж",null,2]
["Состав косметических средств",null,2]
["Терминальные состояния. Основы сердечно-легочной реанимации ",null,2]
["Доврачебная медицинская помощь при неотложных состояниях в клинике внутренних болезней ",null,2]
["Первая помощь при аллергических реакциях",null,2]
["Доврачебная помощь при электротравме",null,2]
["Экзамен ",null,4]
["Практика 1 бр. Психологические аспекты в работе с пациентами",null,2]
["Практика 1 бр. Обработка изделий медицинского назначения и предметов ухода",null,2]
["Практика 1 бр. Приказы, документы по организации работы косметологических учреждений. Функциональные обязанности м/сестры. Пользование аппаратурой, техника безопасности, ведение документации.",null,2]
["Практика 1 бр. Принципы диагностики заболеваний кожи",null,2]
["Практика 1 бр. Принципы диагностики косметических дефектов",null,2]
["Практика 1 бр. Пиодермии ",null,2]
["Практика 1 бр. Вирусные заболевания кожи",null,2]
["Практика 1 бр. Зудящие дерматозы. Псориаз. ",null,2]
["Практика 1 бр. Новообразования ",null,2]
["Практика 1 бр. Заболевания волос",null,2]
["Практика 1 бр. Косметические дефекты и заболевания кожи",null,2]
["Практика 1 бр. Антицеллюлитные программы",null,4]
["Практика 1 бр. Физиотерапевтические методы лечения, применяемые в косметологии",null,6]
["Практика 1 бр. Косметический массаж",null,6]
["Практика 1 бр. Терминальные состояния. Основы сердечно-легочной реанимации ",null,2]
["Практика 1 бр. Итоговый тестовый контроль",null,1]
["Практика 2 бр. Психологические аспекты в работе с пациентами",null,2]
["Практика 2 бр. Обработка изделий медицинского назначения и предметов ухода",null,2]
["Практика 2 бр. Приказы, документы по организации работы косметологических учреждений. Функциональные обязанности м/сестры. Пользование аппаратурой, техника безопасности, ведение документации.",null,2]
["Практика 2 бр. Принципы диагностики заболеваний кожи",null,2]
["Практика 2 бр. Принципы диагностики косметических дефектов",null,2]
["Практика 2 бр. Пиодермии ",null,2]
["Практика 2 бр. Вирусные заболевания кожи",null,2]
["Практика 2 бр. Зудящие дерматозы. Псориаз. ",null,2]
["Практика 2 бр. Новообразования ",null,2]
["Практика 2 бр. Заболевания волос",null,2]
["Практика 2 бр. Косметические дефекты и заболевания кожи",null,2]
["Практика 2 бр. Антицеллюлитные программы",null,4]
["Практика 2 бр. Физиотерапевтические методы лечения, применяемые в косметологии",null,6]
["Практика 2 бр. Косметический массаж",null,6]
["Практика 2 бр. Терминальные состояния. Основы сердечно-легочной реанимации ",null,2]
["Практика 2 бр. Итоговый тестовый контроль",null,1]
["Практика 3 бр. Психологические аспекты в работе с пациентами",null,2]
["Практика 3 бр. Обработка изделий медицинского назначения и предметов ухода",null,2]
["Практика 3 бр. Приказы, документы по организации работы косметологических учреждений. Функциональные обязанности м/сестры. Пользование аппаратурой, техника безопасности, ведение документации.",null,2]
["Практика 3 бр. Принципы диагностики заболеваний кожи",null,2]
["Практика 3 бр. Принципы диагностики косметических дефектов",null,2]
["Практика 3 бр. Пиодермии ",null,2]
["Практика 3 бр. Вирусные заболевания кожи",null,2]
["Практика 3 бр. Зудящие дерматозы. Псориаз. ",null,2]
["Практика 3 бр. Новообразования ",null,2]
["Практика 3 бр. Заболевания волос",null,2]
["Практика 3 бр. Косметические дефекты и заболевания кожи",null,2]
["Практика 3 бр. Антицеллюлитные программы",null,4]
["Практика 3 бр. Физиотерапевтические методы лечения, применяемые в косметологии",null,6]
["Практика 3 бр. Косметический массаж",null,6]
["Практика 3 бр. Терминальные состояния. Основы сердечно-легочной реанимации ",null,2]
["Практика 3 бр. Итоговый тестовый контроль",null,1]

{"sheet":"Расписание","index":1,"n_rows":34,"n_cols":6,"rows_kept":34,"cut":false,"hidden":false,"merged":[[20,0,33,0],[0,0,0,5],[1,0,1,5],[2,0,2,5],[3,0,3,5],[4,0,4,5],[6,0,19,0]]}
["\"Утверждаю\""]
["Начальник ОДПО"]
["_______________Зинченко Д.А."]
["Цикл: Сестринская косметология \r Повышение квалификации 13.09.2017г. - 14.09.2017г."]
["Расписание"]
["Дата","Время\r\nначала","Время\r\nокончания","Кол-во\r\nчасов","Тема","Преподаватель"]
["13.09.2017г.",null,{"$f":"IFERROR(D7*45/60/24+B7,\"\")","v":""},{"$f":"IFERROR(VLOOKUP(E7,Темы!$B$1:$C$1000,2,FALSE),\"\")","v":""}]
[null,null,"",{"$f":"IFERROR(VLOOKUP(E8,Темы!$B$1:$C$1000,2,FALSE),\"\")","v":""}]
[null,null,"",{"$f":"IFERROR(VLOOKUP(E9,Темы!$B$1:$C$1000,2,FALSE),\"\")","v":""}]
[null,null,"",{"$f":"IFERROR(VLOOKUP(E10,Темы!$B$1:$C$1000,2,FALSE),\"\")","v":""}]
[null,null,"",{"$f":"IFERROR(VLOOKUP(E11,Темы!$B$1:$C$1000,2,FALSE),\"\")","v":""}]
[null,null,"",{"$f":"IFERROR(VLOOKUP(E12,Темы!$B$1:$C$1000,2,FALSE),\"\")","v":""}]
[null,null,"",{"$f":"IFERROR(VLOOKUP(E13,Темы!$B$1:$C$1000,2,FALSE),\"\")","v":""}]
[null,null,"",{"$f":"IFERROR(VLOOKUP(E14,Темы!$B$1:$C$1000,2,FALSE),\"\")","v":""}]
[null,null,"",{"$f":"IFERROR(VLOOKUP(E15,Темы!$B$1:$C$1000,2,FALSE),\"\")","v":""}]
[null,null,"",{"$f":"IFERROR(VLOOKUP(E16,Темы!$B$1:$C$1000,2,FALSE),\"\")","v":""}]
[null,null,"",{"$f":"IFERROR(VLOOKUP(E17,Темы!$B$1:$C$1000,2,FALSE),\"\")","v":""}]
[null,null,"",{"$f":"IFERROR(VLOOKUP(E18,Темы!$B$1:$C$1000,2,FALSE),\"\")","v":""}]
[null,null,"",{"$f":"IFERROR(VLOOKUP(E19,Темы!$B$1:$C$1000,2,FALSE),\"\")","v":""}]
[null,null,"",{"$f":"IFERROR(VLOOKUP(E20,Темы!$B$1:$C$1000,2,FALSE),\"\")","v":""}]
["14.09.2017г.",null,"",{"$f":"IFERROR(VLOOKUP(E21,Темы!$B$1:$C$1000,2,FALSE),\"\")","v":""}]
[null,null,"",{"$f":"IFERROR(VLOOKUP(E22,Темы!$B$1:$C$1000,2,FALSE),\"\")","v":""}]
[null,null,"",{"$f":"IFERROR(VLOOKUP(E23,Темы!$B$1:$C$1000,2,FALSE),\"\")","v":""}]
[null,null,"",{"$f":"IFERROR(VLOOKUP(E24,Темы!$B$1:$C$1000,2,FALSE),\"\")","v":""}]
[null,null,"",{"$f":"IFERROR(VLOOKUP(E25,Темы!$B$1:$C$1000,2,FALSE),\"\")","v":""}]
[null,null,"",{"$f":"IFERROR(VLOOKUP(E26,Темы!$B$1:$C$1000,2,FALSE),\"\")","v":""}]
[null,null,"",{"$f":"IFERROR(VLOOKUP(E27,Темы!$B$1:$C$1000,2,FALSE),\"\")","v":""}]
[null,null,"",{"$f":"IFERROR(VLOOKUP(E28,Темы!$B$1:$C$1000,2,FALSE),\"\")","v":""}]
[null,null,"",{"$f":"IFERROR(VLOOKUP(E29,Темы!$B$1:$C$1000,2,FALSE),\"\")","v":""}]
[null,null,"",{"$f":"IFERROR(VLOOKUP(E30,Темы!$B$1:$C$1000,2,FALSE),\"\")","v":""}]
[null,null,"",{"$f":"IFERROR(VLOOKUP(E31,Темы!$B$1:$C$1000,2,FALSE),\"\")","v":""}]
[null,null,"",{"$f":"IFERROR(VLOOKUP(E32,Темы!$B$1:$C$1000,2,FALSE),\"\")","v":""}]
[null,null,"",{"$f":"IFERROR(VLOOKUP(E33,Темы!$B$1:$C$1000,2,FALSE),\"\")","v":""}]
[null,null,"",{"$f":"IFERROR(VLOOKUP(E34,Темы!$B$1:$C$1000,2,FALSE),\"\")","v":""}]